[Event "Titled Tuesday Blitz December 27 Late 2022"]
[White "Bryakin, Mikhail"]
[Black "Srebrnic, Marko"]
[WhiteFideId "4165314"]
[BlackFideId "14603616"]
[WhiteElo "2455"]
[BlackElo "2366"]
[Result "1-0"]
[Round "03"]
[TimeControl "180+2"]
[Date "2022.12.27"]
[WhiteClock "0:01:33"]
[BlackClock "0:00:26"]

1. b3 {[%clk 0:02:57]}  c5 {[%clk 0:02:53]} 2. Bb2 {[%clk 0:02:57]}  Nc6 {[%clk 0:02:54]} 3. Nf3 {[%clk 0:02:57]}  Nf6 {[%clk 0:02:52]} 4. g3 {[%clk 0:02:55]}  d6 {[%clk 0:02:49]} 5. Bg2 {[%clk 0:02:56]}  e5 {[%clk 0:02:49]} 6. d3 {[%clk 0:02:54]}  Be7 {[%clk 0:02:49]} 7. O-O {[%clk 0:02:55]}  O-O {[%clk 0:02:49]} 8. Nbd2 {[%clk 0:02:55]}  Rb8 {[%clk 0:02:43]} 9. c4 {[%clk 0:02:55]}  b5 {[%clk 0:02:41]} 10. e3 {[%clk 0:02:50]}  a6 {[%clk 0:02:39]} 11. d4 {[%clk 0:02:45]}  exd4 {[%clk 0:02:32]} 12. exd4 {[%clk 0:02:45]}  d5 {[%clk 0:02:22]} 13. cxb5 {[%clk 0:02:41]}  Nb4 {[%clk 0:02:18]} 14. dxc5 {[%clk 0:02:37]}  Bxc5 {[%clk 0:02:15]} 15. Ne5 {[%clk 0:02:28]}  Rxb5 {[%clk 0:02:01]} 16. a3 {[%clk 0:02:25]}  Qb6 {[%clk 0:01:16]} 17. axb4 {[%clk 0:02:21]}  Bxb4 {[%clk 0:01:16]} 18. Ndf3 {[%clk 0:02:09]}  Ne4 {[%clk 0:01:01]} 19. Bd4 {[%clk 0:02:08]}  Bc5 {[%clk 0:00:55]} 20. Bxc5 {[%clk 0:02:06]}  Qxc5 {[%clk 0:00:56]} 21. Rc1 {[%clk 0:02:02]}  Qa3 {[%clk 0:00:48]} 22. Nd4 {[%clk 0:01:54]}  Rb6 {[%clk 0:00:40]} 23. Re1 {[%clk 0:01:41]}  Bb7 {[%clk 0:00:34]} 24. Nd7 {[%clk 0:01:39]}  Rf6 {[%clk 0:00:25]} 25. Nxf6+ {[%clk 0:01:35]}  Nxf6 {[%clk 0:00:26]} 26. Qd2 {[%clk 0:01:33]} 1-0


[Site "https://www.chess.com"]

[Event "Titled Tuesday Blitz December 27 Late 2022"]
[White "Clawitter, Craig"]
[Black "Quinones Garcia, Santiago"]
[WhiteFideId "2023105"]
[BlackFideId "4408497"]
[WhiteElo "2050"]
[BlackElo "2248"]
[Result "0-1"]
[Round "03"]
[TimeControl "180+2"]
[Date "2022.12.27"]
[WhiteClock "0:00:03"]
[BlackClock "0:00:38"]

1. e4 {[%clk 0:02:56]}  e5 {[%clk 0:02:59]} 2. Nf3 {[%clk 0:02:56]}  Nc6 {[%clk 0:02:58]} 3. Bb5 {[%clk 0:02:57]}  a6 {[%clk 0:02:57]} 4. Ba4 {[%clk 0:02:56]}  Nf6 {[%clk 0:02:57]} 5. O-O {[%clk 0:02:55]}  Be7 {[%clk 0:02:58]} 6. d3 {[%clk 0:02:54]}  b5 {[%clk 0:02:56]} 7. Bb3 {[%clk 0:02:55]}  O-O {[%clk 0:02:56]} 8. Nc3 {[%clk 0:02:54]}  Bb7 {[%clk 0:02:55]} 9. a4 {[%clk 0:02:45]}  b4 {[%clk 0:02:55]} 10. Nd5 {[%clk 0:02:46]}  d6 {[%clk 0:02:51]} 11. a5 {[%clk 0:02:44]}  Rb8 {[%clk 0:02:44]} 12. Bd2 {[%clk 0:02:42]}  Bc8 {[%clk 0:02:35]} 13. Qe1 {[%clk 0:02:32]}  Bg4 {[%clk 0:02:29]} 14. Nxb4 {[%clk 0:02:31]}  Rxb4 {[%clk 0:02:23]} 15. Bxb4 {[%clk 0:02:29]}  Bxf3 {[%clk 0:02:23]} 16. gxf3 {[%clk 0:02:21]}  Nd4 {[%clk 0:02:22]} 17. Kg2 {[%clk 0:02:02]}  Nh5 {[%clk 0:02:19]} 18. Bd2 {[%clk 0:02:01]}  Bg5 {[%clk 0:02:19]} 19. Be3 {[%clk 0:01:43]}  Nf4+ {[%clk 0:02:02]} 20. Kh1 {[%clk 0:01:35]}  Qd7 {[%clk 0:01:53]} 21. Rg1 {[%clk 0:01:05]}  Nxf3 {[%clk 0:01:36]} 22. Qf1 {[%clk 0:01:02]}  Nxg1 {[%clk 0:01:31]} 23. Qxg1 {[%clk 0:01:01]}  Qh3 {[%clk 0:01:30]} 24. Qg3 {[%clk 0:00:39]}  Qh6 {[%clk 0:01:16]} 25. Rg1 {[%clk 0:00:32]}  Bh4 {[%clk 0:01:09]} 26. Qg4 {[%clk 0:00:14]}  Qf6 {[%clk 0:01:04]} 27. Bc4 {[%clk 0:00:12]}  Ra8 {[%clk 0:01:00]} 28. Bxf4 {[%clk 0:00:10]}  exf4 {[%clk 0:00:59]} 29. c3 {[%clk 0:00:10]}  Bxf2 {[%clk 0:00:58]} 30. Rf1 {[%clk 0:00:09]}  Be3 {[%clk 0:00:57]} 31. d4 {[%clk 0:00:07]}  g6 {[%clk 0:00:42]} 32. Qd7 {[%clk 0:00:06]}  c5 {[%clk 0:00:39]} 33. e5 {[%clk 0:00:03]}  dxe5 {[%clk 0:00:39]} 34. dxe5 {[%clk 0:00:03]}  Qxe5 {[%clk 0:00:38]} 35. Qxf7+ {[%clk 0:00:03]}  Kh8 {[%clk 0:00:38]} 0-1


[Site "https://www.chess.com"]

[Event "Titled Tuesday Blitz December 27 Late 2022"]
[White "Denishev, Marat"]
[Black "Gasparyan, David"]
[WhiteFideId "24131563"]
[BlackFideId "13311980"]
[WhiteElo "2255"]
[BlackElo "2142"]
[Result "0-1"]
[Round "03"]
[TimeControl "180+2"]
[Date "2022.12.27"]
[WhiteClock "0:00:05"]
[BlackClock "0:00:08"]

1. e4 {[%clk 0:03:00]}  c5 {[%clk 0:03:00]} 2. Nf3 {[%clk 0:03:00]}  Nc6 {[%clk 0:03:00]} 3. Bb5 {[%clk 0:02:59]}  Qc7 {[%clk 0:02:57]} 4. Nc3 {[%clk 0:02:57]}  e6 {[%clk 0:02:57]} 5. O-O {[%clk 0:02:56]}  Nf6 {[%clk 0:02:57]} 6. d4 {[%clk 0:02:53]}  cxd4 {[%clk 0:02:57]} 7. Nxd4 {[%clk 0:02:53]}  Nxd4 {[%clk 0:02:38]} 8. Qxd4 {[%clk 0:02:54]}  Bc5 {[%clk 0:02:39]} 9. Qd3 {[%clk 0:02:51]}  a6 {[%clk 0:02:36]} 10. Ba4 {[%clk 0:02:50]}  b5 {[%clk 0:02:34]} 11. Bb3 {[%clk 0:02:50]}  Bb7 {[%clk 0:02:33]} 12. Bg5 {[%clk 0:02:50]}  Ng4 {[%clk 0:02:16]} 13. Qh3 {[%clk 0:02:37]}  h5 {[%clk 0:02:09]} 14. Rad1 {[%clk 0:02:15]}  Bd6 {[%clk 0:01:33]} 15. g3 {[%clk 0:02:03]}  b4 {[%clk 0:01:32]} 16. Ne2 {[%clk 0:01:57]}  Bxe4 {[%clk 0:01:32]} 17. f3 {[%clk 0:01:51]}  Qc5+ {[%clk 0:01:31]} 18. Rd4 {[%clk 0:01:35]}  Be5 {[%clk 0:01:15]} 19. fxg4 {[%clk 0:00:43]}  Bxd4+ {[%clk 0:01:13]} 20. Nxd4 {[%clk 0:00:44]}  Qxg5 {[%clk 0:00:58]} 21. Re1 {[%clk 0:00:34]}  d5 {[%clk 0:00:44]} 22. Qf1 {[%clk 0:00:29]}  O-O {[%clk 0:00:34]} 23. gxh5 {[%clk 0:00:27]}  Qxh5 {[%clk 0:00:34]} 24. Nc6 {[%clk 0:00:27]}  Rfe8 {[%clk 0:00:28]} 25. Qf4 {[%clk 0:00:25]}  Qh3 {[%clk 0:00:23]} 26. Re2 {[%clk 0:00:24]}  Rac8 {[%clk 0:00:20]} 27. Ne5 {[%clk 0:00:24]}  Qf5 {[%clk 0:00:21]} 28. Kf2 {[%clk 0:00:17]}  f6 {[%clk 0:00:19]} 29. Qxf5 {[%clk 0:00:15]}  Bxf5 {[%clk 0:00:20]} 30. Nd7 {[%clk 0:00:15]}  Red8 {[%clk 0:00:19]} 31. Nb6 {[%clk 0:00:15]}  Rc6 {[%clk 0:00:20]} 32. Na4 {[%clk 0:00:13]}  Rdc8 {[%clk 0:00:20]} 33. c3 {[%clk 0:00:13]}  a5 {[%clk 0:00:20]} 34. Ke3 {[%clk 0:00:12]}  Kf7 {[%clk 0:00:20]} 35. Kf4 {[%clk 0:00:12]}  g5+ {[%clk 0:00:19]} 36. Kf3 {[%clk 0:00:12]}  Kg6 {[%clk 0:00:20]} 37. Kg2 {[%clk 0:00:12]}  Be4+ {[%clk 0:00:20]} 38. Kf2 {[%clk 0:00:13]}  e5 {[%clk 0:00:19]} 39. Rd2 {[%clk 0:00:12]}  bxc3 {[%clk 0:00:18]} 40. bxc3 {[%clk 0:00:13]}  Rd6 {[%clk 0:00:16]} 41. Nb2 {[%clk 0:00:12]}  Rb8 {[%clk 0:00:15]} 42. Ke3 {[%clk 0:00:12]}  f5 {[%clk 0:00:15]} 43. Na4 {[%clk 0:00:12]}  Rc6 {[%clk 0:00:13]} 44. Kf2 {[%clk 0:00:09]}  Rd8 {[%clk 0:00:13]} 45. Ke3 {[%clk 0:00:09]}  f4+ {[%clk 0:00:13]} 46. Kf2 {[%clk 0:00:09]}  Kf5 {[%clk 0:00:13]} 47. h3 {[%clk 0:00:07]}  g4 {[%clk 0:00:11]} 48. h4 {[%clk 0:00:06]}  f3 {[%clk 0:00:10]} 49. Nb2 {[%clk 0:00:06]}  Bb1 {[%clk 0:00:09]} 50. Nd1 {[%clk 0:00:06]}  d4 {[%clk 0:00:08]} 51. cxd4 {[%clk 0:00:04]}  Rxd4 {[%clk 0:00:09]} 52. Nb2 {[%clk 0:00:05]}  Rxd2+ {[%clk 0:00:08]} 0-1


[Site "https://www.chess.com"]

[Event "Titled Tuesday Blitz December 27 Late 2022"]
[White "Dzierzak, Radoslaw"]
[Black "Djokic, Mihailo"]
[WhiteFideId "1161407"]
[BlackFideId "976440"]
[WhiteElo "2220"]
[BlackElo "2192"]
[Result "0-1"]
[Round "03"]
[TimeControl "180+2"]
[Date "2022.12.27"]
[WhiteClock "0:01:04"]
[BlackClock "0:00:59"]

1. e4 {[%clk 0:03:00]}  c5 {[%clk 0:02:58]} 2. Nf3 {[%clk 0:03:00]}  d6 {[%clk 0:02:58]} 3. d4 {[%clk 0:03:00]}  cxd4 {[%clk 0:02:58]} 4. Nxd4 {[%clk 0:03:01]}  Nf6 {[%clk 0:02:59]} 5. Nc3 {[%clk 0:03:02]}  g6 {[%clk 0:03:00]} 6. g3 {[%clk 0:03:01]}  Nc6 {[%clk 0:03:00]} 7. Nde2 {[%clk 0:03:00]}  h5 {[%clk 0:03:00]} 8. h3 {[%clk 0:03:00]}  Bd7 {[%clk 0:02:59]} 9. Bg2 {[%clk 0:03:00]}  Qc8 {[%clk 0:03:00]} 10. Nd5 {[%clk 0:02:55]}  Bg7 {[%clk 0:02:56]} 11. Bg5 {[%clk 0:02:54]}  Nxd5 {[%clk 0:02:52]} 12. exd5 {[%clk 0:02:54]}  Ne5 {[%clk 0:02:52]} 13. b3 {[%clk 0:02:47]}  b5 {[%clk 0:02:37]} 14. f4 {[%clk 0:02:38]}  f6 {[%clk 0:02:33]} 15. fxe5 {[%clk 0:02:27]}  fxg5 {[%clk 0:02:26]} 16. e6 {[%clk 0:02:27]}  Bc3+ {[%clk 0:02:26]} 17. Kf1 {[%clk 0:02:04]}  O-O+ {[%clk 0:02:20]} 18. Kg1 {[%clk 0:02:02]}  Qc5+ {[%clk 0:02:20]} 19. Kh2 {[%clk 0:02:02]}  Bxa1 {[%clk 0:02:15]} 20. Qd3 {[%clk 0:01:51]}  Be8 {[%clk 0:01:54]} 21. Rxa1 {[%clk 0:01:50]}  Rf2 {[%clk 0:01:46]} 22. Rf1 {[%clk 0:01:36]}  Rxf1 {[%clk 0:01:42]} 23. Bxf1 {[%clk 0:01:37]}  Qf2+ {[%clk 0:01:43]} 24. Bg2 {[%clk 0:01:37]}  Rc8 {[%clk 0:01:41]} 25. Nd4 {[%clk 0:01:35]}  Rc5 {[%clk 0:01:40]} 26. Nc6 {[%clk 0:01:28]}  Rxc2 {[%clk 0:01:12]} 27. Qe4 {[%clk 0:01:07]}  Re2 {[%clk 0:01:11]} 28. Nxe7+ {[%clk 0:01:04]}  Kh7 {[%clk 0:00:59]} 0-1


[Site "https://www.chess.com"]

[Event "Titled Tuesday Blitz December 27 Late 2022"]
[White "Eggleston, Thomas A"]
[Black "Desideri, Ricardo Maruchi"]
[WhiteFideId "412139"]
[BlackFideId "2110440"]
[WhiteElo "2215"]
[BlackElo "1959"]
[Result "1-0"]
[Round "03"]
[TimeControl "180+2"]
[Date "2022.12.27"]
[WhiteClock "0:00:20"]
[BlackClock "0:00:10"]

1. e4 {[%clk 0:03:00]}  c5 {[%clk 0:02:57]} 2. b3 {[%clk 0:03:00]}  d6 {[%clk 0:02:50]} 3. Bb2 {[%clk 0:03:00]}  Nf6 {[%clk 0:02:49]} 4. Nc3 {[%clk 0:02:59]}  e6 {[%clk 0:02:47]} 5. f4 {[%clk 0:03:00]}  Nc6 {[%clk 0:02:43]} 6. Bb5 {[%clk 0:02:40]}  Qc7 {[%clk 0:02:41]} 7. Qf3 {[%clk 0:02:39]}  a6 {[%clk 0:02:40]} 8. Bxc6+ {[%clk 0:02:38]}  bxc6 {[%clk 0:02:40]} 9. g4 {[%clk 0:02:34]}  h5 {[%clk 0:02:11]} 10. g5 {[%clk 0:02:34]}  Ng8 {[%clk 0:02:01]} 11. Nge2 {[%clk 0:02:32]}  Ne7 {[%clk 0:01:59]} 12. h4 {[%clk 0:02:19]}  d5 {[%clk 0:01:56]} 13. d4 {[%clk 0:02:08]}  cxd4 {[%clk 0:01:43]} 14. Nxd4 {[%clk 0:02:08]}  c5 {[%clk 0:01:44]} 15. Nde2 {[%clk 0:02:08]}  d4 {[%clk 0:01:41]} 16. Na4 {[%clk 0:02:04]}  Bb7 {[%clk 0:01:40]} 17. Ng3 {[%clk 0:01:59]}  Nf5 {[%clk 0:01:28]} 18. Nf1 {[%clk 0:01:33]}  Qc6 {[%clk 0:01:11]} 19. Nd2 {[%clk 0:01:32]}  Ne3 {[%clk 0:01:09]} 20. Rc1 {[%clk 0:01:26]}  Bd6 {[%clk 0:01:03]} 21. c3 {[%clk 0:01:19]}  dxc3 {[%clk 0:00:28]} 22. Bxc3 {[%clk 0:01:06]}  Bxf4 {[%clk 0:00:28]} 23. Bxg7 {[%clk 0:00:58]}  Rh7 {[%clk 0:00:25]} 24. Rxc5 {[%clk 0:00:51]}  Qd6 {[%clk 0:00:19]} 25. Bf6 {[%clk 0:00:32]}  Rc8 {[%clk 0:00:16]} 26. Rxc8+ {[%clk 0:00:29]}  Bxc8 {[%clk 0:00:16]} 27. e5 {[%clk 0:00:25]}  Qd3 {[%clk 0:00:14]} 28. Qc6+ {[%clk 0:00:20]}  Bd7 {[%clk 0:00:13]} 29. Qa8+ {[%clk 0:00:20]}  Bc8 {[%clk 0:00:10]} 30. Qxc8+ {[%clk 0:00:20]} 1-0


[Site "https://www.chess.com"]

[Event "Titled Tuesday Blitz December 27 Late 2022"]
[White "Ezat, Mohamed"]
[Black "Vaibhav Jayant Raut"]
[WhiteFideId "10600906"]
[BlackFideId "5089034"]
[WhiteElo "2402"]
[BlackElo "2237"]
[Result "0-1"]
[Round "03"]
[TimeControl "180+2"]
[Date "2022.12.27"]
[WhiteClock "0:02:32"]
[BlackClock "0:01:56"]

1. d4 {[%clk 0:03:00]}  Nf6 {[%clk 0:02:59]} 2. c4 {[%clk 0:03:00]}  e6 {[%clk 0:02:59]} 3. Nc3 {[%clk 0:03:01]}  Bb4 {[%clk 0:03:00]} 4. e3 {[%clk 0:03:00]}  O-O {[%clk 0:03:00]} 5. a3 {[%clk 0:03:01]}  Bxc3+ {[%clk 0:03:00]} 6. bxc3 {[%clk 0:03:02]}  d5 {[%clk 0:03:00]} 7. cxd5 {[%clk 0:03:01]}  exd5 {[%clk 0:03:00]} 8. Bd3 {[%clk 0:02:59]}  c5 {[%clk 0:03:01]} 9. f3 {[%clk 0:03:00]}  b6 {[%clk 0:03:00]} 10. Ne2 {[%clk 0:02:59]}  Re8 {[%clk 0:02:59]} 11. O-O {[%clk 0:02:57]}  Nc6 {[%clk 0:02:58]} 12. Ng3 {[%clk 0:02:56]}  h5 {[%clk 0:02:58]} 13. Ra2 {[%clk 0:02:55]}  h4 {[%clk 0:02:58]} 14. Nh1 {[%clk 0:02:55]}  Ne7 {[%clk 0:02:56]} 15. Nf2 {[%clk 0:02:55]}  Ng6 {[%clk 0:02:53]} 16. Re2 {[%clk 0:02:51]}  Bb7 {[%clk 0:02:34]} 17. Rfe1 {[%clk 0:02:45]}  Qd7 {[%clk 0:02:32]} 18. e4 {[%clk 0:02:44]}  dxe4 {[%clk 0:02:31]} 19. fxe4 {[%clk 0:02:44]}  cxd4 {[%clk 0:02:26]} 20. cxd4 {[%clk 0:02:44]}  Qxd4 {[%clk 0:02:14]} 21. Bb2 {[%clk 0:02:38]}  Qd6 {[%clk 0:01:57]} 22. e5 {[%clk 0:02:33]}  Qd5 {[%clk 0:01:56]} 23. Bxg6 {[%clk 0:02:32]} 0-1


[Site "https://www.chess.com"]

[Event "Titled Tuesday Blitz December 27 Late 2022"]
[White "Fernandez Garcia, Gumersindo"]
[Black "Krasteva, Beloslava"]
[WhiteFideId "24516740"]
[BlackFideId "2922029"]
[WhiteElo "2160"]
[BlackElo "2220"]
[Result "1-0"]
[Round "03"]
[TimeControl "180+2"]
[Date "2022.12.27"]
[WhiteClock "0:00:06"]
[BlackClock "0:00:02"]

1. e4 {[%clk 0:03:00]}  c5 {[%clk 0:02:59]} 2. c3 {[%clk 0:03:00]}  Qa5 {[%clk 0:02:57]} 3. Na3 {[%clk 0:02:56]}  Nc6 {[%clk 0:02:51]} 4. Nf3 {[%clk 0:02:55]}  e6 {[%clk 0:02:50]} 5. Bd3 {[%clk 0:02:46]}  a6 {[%clk 0:02:45]} 6. Nc4 {[%clk 0:02:35]}  Qc7 {[%clk 0:02:44]} 7. a4 {[%clk 0:02:32]}  d5 {[%clk 0:02:24]} 8. exd5 {[%clk 0:02:22]}  exd5 {[%clk 0:02:25]} 9. Ne3 {[%clk 0:02:20]}  Nf6 {[%clk 0:02:24]} 10. O-O {[%clk 0:02:18]}  Be6 {[%clk 0:02:00]} 11. Bf5 {[%clk 0:02:04]}  O-O-O {[%clk 0:01:44]} 12. Bxe6+ {[%clk 0:01:43]}  fxe6 {[%clk 0:01:43]} 13. d4 {[%clk 0:01:42]}  e5 {[%clk 0:01:38]} 14. dxe5 {[%clk 0:01:28]}  Nxe5 {[%clk 0:01:34]} 15. Nxe5 {[%clk 0:01:28]}  Qxe5 {[%clk 0:01:34]} 16. Ng4 {[%clk 0:01:28]}  Qf5 {[%clk 0:01:25]} 17. Nxf6 {[%clk 0:01:26]}  gxf6 {[%clk 0:01:23]} 18. g3 {[%clk 0:01:17]}  h5 {[%clk 0:01:21]} 19. Qe2 {[%clk 0:00:52]}  Bd6 {[%clk 0:00:56]} 20. Kg2 {[%clk 0:00:33]}  h4 {[%clk 0:00:52]} 21. g4 {[%clk 0:00:29]}  h3+ {[%clk 0:00:51]} 22. Kh1 {[%clk 0:00:27]}  Qd7 {[%clk 0:00:39]} 23. Qf3 {[%clk 0:00:24]}  Qc7 {[%clk 0:00:31]} 24. Be3 {[%clk 0:00:20]}  Bxh2 {[%clk 0:00:29]} 25. Bxc5 {[%clk 0:00:18]}  Be5 {[%clk 0:00:15]} 26. Bd4 {[%clk 0:00:18]}  Rdg8 {[%clk 0:00:11]} 27. Bxe5 {[%clk 0:00:16]}  fxe5 {[%clk 0:00:12]} 28. Rg1 {[%clk 0:00:16]}  Qd7 {[%clk 0:00:11]} 29. Rad1 {[%clk 0:00:12]}  e4 {[%clk 0:00:05]} 30. Qf5 {[%clk 0:00:11]}  Qxf5 {[%clk 0:00:03]} 31. gxf5 {[%clk 0:00:12]}  Rd8 {[%clk 0:00:01]} 32. f6 {[%clk 0:00:10]}  Rhf8 {[%clk 0:00:01]} 33. Rg6 {[%clk 0:00:07]}  Rd6 {[%clk 0:00:01]} 34. Kh2 {[%clk 0:00:07]}  Rdxf6 {[%clk 0:00:01]} 35. Rxf6 {[%clk 0:00:07]}  Rxf6 {[%clk 0:00:02]} 36. Kxh3 {[%clk 0:00:06]}  Rxf2 {[%clk 0:00:02]} 37. Rxd5 {[%clk 0:00:07]}  Rxb2 {[%clk 0:00:02]} 38. Rd4 {[%clk 0:00:07]}  e3 {[%clk 0:00:02]} 39. Kg3 {[%clk 0:00:06]}  e2 {[%clk 0:00:02]} 40. Kf2 {[%clk 0:00:07]}  Rc2 {[%clk 0:00:02]} 41. Rc4+ {[%clk 0:00:06]} 1-0


[Site "https://www.chess.com"]

[Event "Titled Tuesday Blitz December 27 Late 2022"]
[White "Fernandez Hernandez, Gerardo"]
[Black "Battlecruiser_Operational"]
[WhiteFideId "2207400"]
[WhiteElo "2181"]
[BlackElo "2417"]
[Result "0-1"]
[Round "03"]
[TimeControl "180+2"]
[Date "2022.12.27"]
[WhiteClock "0:00:01"]
[BlackClock "0:00:51"]

1. e4 {[%clk 0:03:00]}  c6 {[%clk 0:03:00]} 2. d4 {[%clk 0:02:56]}  d5 {[%clk 0:02:59]} 3. e5 {[%clk 0:02:57]}  c5 {[%clk 0:02:57]} 4. dxc5 {[%clk 0:02:53]}  e6 {[%clk 0:02:56]} 5. Be3 {[%clk 0:02:50]}  Nd7 {[%clk 0:02:52]} 6. Bb5 {[%clk 0:02:44]}  Ne7 {[%clk 0:02:51]} 7. c3 {[%clk 0:02:30]}  Nc6 {[%clk 0:02:48]} 8. Nf3 {[%clk 0:02:28]}  Nxc5 {[%clk 0:02:44]} 9. O-O {[%clk 0:02:13]}  Bd7 {[%clk 0:02:42]} 10. a4 {[%clk 0:02:03]}  a6 {[%clk 0:02:40]} 11. Be2 {[%clk 0:01:55]}  a5 {[%clk 0:02:28]} 12. Na3 {[%clk 0:01:50]}  Be7 {[%clk 0:02:27]} 13. Nb5 {[%clk 0:01:48]}  O-O {[%clk 0:02:27]} 14. Qd2 {[%clk 0:01:24]}  Nb3 {[%clk 0:02:21]} 15. Qc2 {[%clk 0:01:21]}  Nxa1 {[%clk 0:02:20]} 16. Rxa1 {[%clk 0:01:22]}  f6 {[%clk 0:02:15]} 17. exf6 {[%clk 0:01:06]}  Bxf6 {[%clk 0:02:16]} 18. Bd3 {[%clk 0:01:06]}  h6 {[%clk 0:02:08]} 19. Bc5 {[%clk 0:00:52]}  Ne7 {[%clk 0:02:03]} 20. Re1 {[%clk 0:00:33]}  b6 {[%clk 0:01:59]} 21. Bd4 {[%clk 0:00:28]}  Bxb5 {[%clk 0:01:49]} 22. Bxb5 {[%clk 0:00:17]}  Qd6 {[%clk 0:01:41]} 23. Ne5 {[%clk 0:00:16]}  Nf5 {[%clk 0:01:34]} 24. Bd3 {[%clk 0:00:07]}  Nxd4 {[%clk 0:01:31]} 25. cxd4 {[%clk 0:00:08]}  Rac8 {[%clk 0:01:29]} 26. Bh7+ {[%clk 0:00:05]}  Kh8 {[%clk 0:01:26]} 27. Qg6 {[%clk 0:00:04]}  Bxe5 {[%clk 0:01:22]} 28. dxe5 {[%clk 0:00:04]}  Qxe5 {[%clk 0:01:19]} 29. Rd1 {[%clk 0:00:01]}  Qxb2 {[%clk 0:01:14]} 30. h3 {[%clk 0:00:01]}  Qxf2+ {[%clk 0:01:13]} 31. Kh1 {[%clk 0:00:01]}  Rf6 {[%clk 0:00:59]} 32. Qb1 {[%clk 0:00:01]}  g6 {[%clk 0:00:51]} 33. Bxg6 {[%clk 0:00:01]}  Rg8 {[%clk 0:00:51]} 0-1


[Site "https://www.chess.com"]

[Event "Titled Tuesday Blitz December 27 Late 2022"]
[White "Finkelstein, Alan"]
[Black "Rangel, Daniel"]
[WhiteFideId "30950961"]
[BlackFideId "2124475"]
[WhiteElo "2152"]
[BlackElo "2207"]
[Result "0-1"]
[Round "03"]
[TimeControl "180+2"]
[Date "2022.12.27"]
[WhiteClock "0:00:37"]
[BlackClock "0:01:41"]

1. d4 {[%clk 0:03:00]}  Nf6 {[%clk 0:02:59]} 2. c4 {[%clk 0:03:01]}  g6 {[%clk 0:02:59]} 3. g3 {[%clk 0:03:01]}  Bg7 {[%clk 0:03:00]} 4. Bg2 {[%clk 0:03:01]}  O-O {[%clk 0:03:01]} 5. Nc3 {[%clk 0:03:02]}  c5 {[%clk 0:03:00]} 6. d5 {[%clk 0:03:00]}  d6 {[%clk 0:03:00]} 7. Nf3 {[%clk 0:03:00]}  e6 {[%clk 0:03:01]} 8. O-O {[%clk 0:03:00]}  exd5 {[%clk 0:03:02]} 9. cxd5 {[%clk 0:03:01]}  Bg4 {[%clk 0:03:02]} 10. Nd2 {[%clk 0:03:00]}  Re8 {[%clk 0:03:01]} 11. Nc4 {[%clk 0:02:52]}  b5 {[%clk 0:02:59]} 12. Nxb5 {[%clk 0:02:14]}  Bxe2 {[%clk 0:02:57]} 13. Qc2 {[%clk 0:02:14]}  Bxf1 {[%clk 0:02:57]} 14. Bxf1 {[%clk 0:02:14]}  Bf8 {[%clk 0:02:49]} 15. Bf4 {[%clk 0:02:06]}  Ne4 {[%clk 0:02:42]} 16. Re1 {[%clk 0:01:54]}  a6 {[%clk 0:02:40]} 17. Rxe4 {[%clk 0:01:47]}  Rxe4 {[%clk 0:02:37]} 18. Qxe4 {[%clk 0:01:45]}  axb5 {[%clk 0:02:38]} 19. Ne3 {[%clk 0:01:36]}  Rxa2 {[%clk 0:02:34]} 20. Bxb5 {[%clk 0:01:28]}  Rxb2 {[%clk 0:02:34]} 21. Bd3 {[%clk 0:01:26]}  Nd7 {[%clk 0:02:32]} 22. Nc4 {[%clk 0:01:25]}  Nf6 {[%clk 0:02:31]} 23. Qf3 {[%clk 0:01:25]}  Rb3 {[%clk 0:02:23]} 24. h4 {[%clk 0:01:04]}  Nh5 {[%clk 0:01:57]} 25. Bd2 {[%clk 0:00:52]}  Qf6 {[%clk 0:01:54]} 26. Qe2 {[%clk 0:00:43]}  Qd4 {[%clk 0:01:43]} 27. Bc2 {[%clk 0:00:37]}  Rxg3+ {[%clk 0:01:41]} 0-1


[Site "https://www.chess.com"]

[Event "Titled Tuesday Blitz December 27 Late 2022"]
[White "Firouzja, Alireza"]
[Black "Yuan, Qingyu"]
[WhiteFideId "12573981"]
[BlackFideId "8609772"]
[WhiteElo "2785"]
[BlackElo "2373"]
[Result "1/2-1/2"]
[Round "03"]
[TimeControl "180+2"]
[Date "2022.12.27"]
[WhiteClock "0:00:17"]
[BlackClock "0:00:18"]

1. e4 {[%clk 0:02:49]}  e5 {[%clk 0:02:59]} 2. Nf3 {[%clk 0:02:48]}  Nc6 {[%clk 0:03:00]} 3. Bb5 {[%clk 0:02:48]}  Nf6 {[%clk 0:03:00]} 4. d3 {[%clk 0:02:48]}  Bc5 {[%clk 0:03:00]} 5. Bxc6 {[%clk 0:02:48]}  dxc6 {[%clk 0:03:00]} 6. Nbd2 {[%clk 0:02:48]}  Be6 {[%clk 0:02:57]} 7. O-O {[%clk 0:02:46]}  Bd6 {[%clk 0:02:54]} 8. Nb3 {[%clk 0:02:46]}  Qe7 {[%clk 0:02:48]} 9. Bg5 {[%clk 0:02:39]}  h6 {[%clk 0:02:41]} 10. Bh4 {[%clk 0:02:39]}  O-O-O {[%clk 0:02:24]} 11. Bg3 {[%clk 0:02:22]}  Nd7 {[%clk 0:01:57]} 12. Qe1 {[%clk 0:02:07]}  c5 {[%clk 0:01:44]} 13. Qc3 {[%clk 0:02:05]}  f6 {[%clk 0:01:21]} 14. Nfd2 {[%clk 0:02:04]}  Nb6 {[%clk 0:01:15]} 15. a4 {[%clk 0:02:03]}  Kb8 {[%clk 0:01:12]} 16. a5 {[%clk 0:02:03]}  Nd7 {[%clk 0:01:12]} 17. Nc4 {[%clk 0:02:03]}  g5 {[%clk 0:01:08]} 18. f3 {[%clk 0:02:03]}  h5 {[%clk 0:01:08]} 19. Bf2 {[%clk 0:01:47]}  g4 {[%clk 0:01:07]} 20. Be3 {[%clk 0:01:45]}  Rdg8 {[%clk 0:01:04]} 21. f4 {[%clk 0:01:45]}  h4 {[%clk 0:00:38]} 22. fxe5 {[%clk 0:01:37]}  Nxe5 {[%clk 0:00:33]} 23. Nxe5 {[%clk 0:01:36]}  Bxe5 {[%clk 0:00:21]} 24. Qxc5 {[%clk 0:01:36]}  Qxc5 {[%clk 0:00:20]} 25. Nxc5 {[%clk 0:01:37]}  Bc8 {[%clk 0:00:19]} 26. d4 {[%clk 0:01:37]}  Bd6 {[%clk 0:00:19]} 27. Rxf6 {[%clk 0:01:26]}  Re8 {[%clk 0:00:18]} 28. d5 {[%clk 0:01:04]}  Bxc5 {[%clk 0:00:17]} 29. Bxc5 {[%clk 0:01:04]}  Rxe4 {[%clk 0:00:18]} 30. d6 {[%clk 0:01:04]}  cxd6 {[%clk 0:00:18]} 31. Bxd6+ {[%clk 0:01:04]}  Ka8 {[%clk 0:00:18]} 32. Raf1 {[%clk 0:01:03]}  h3 {[%clk 0:00:17]} 33. Rf8 {[%clk 0:01:02]}  Re8 {[%clk 0:00:17]} 34. Rxh8 {[%clk 0:01:01]}  Rxh8 {[%clk 0:00:18]} 35. gxh3 {[%clk 0:00:59]}  gxh3 {[%clk 0:00:18]} 36. Rf7 {[%clk 0:01:00]}  Be6 {[%clk 0:00:17]} 37. Re7 {[%clk 0:01:00]}  Bd5 {[%clk 0:00:17]} 38. Kf2 {[%clk 0:00:49]}  a6 {[%clk 0:00:17]} 39. b3 {[%clk 0:00:49]}  Rg8 {[%clk 0:00:17]} 40. c4 {[%clk 0:00:49]}  Bc6 {[%clk 0:00:16]} 41. Ke3 {[%clk 0:00:49]}  Rd8 {[%clk 0:00:15]} 42. Re6 {[%clk 0:00:44]}  Re8 {[%clk 0:00:14]} 43. Be7 {[%clk 0:00:45]}  Kb8 {[%clk 0:00:15]} 44. Kd4 {[%clk 0:00:42]}  Kc8 {[%clk 0:00:14]} 45. Re5 {[%clk 0:00:08]}  Kd7 {[%clk 0:00:14]} 46. Bf6 {[%clk 0:00:08]}  Rxe5 {[%clk 0:00:15]} 47. Bxe5 {[%clk 0:00:08]}  Bg2 {[%clk 0:00:15]} 48. Bg3 {[%clk 0:00:09]}  Kc6 {[%clk 0:00:15]} 49. b4 {[%clk 0:00:10]}  Bf1 {[%clk 0:00:14]} 50. Be1 {[%clk 0:00:10]}  Bg2 {[%clk 0:00:14]} 51. c5 {[%clk 0:00:11]}  Bf3 {[%clk 0:00:14]} 52. Ke3 {[%clk 0:00:12]}  Bg2 {[%clk 0:00:15]} 53. Kf4 {[%clk 0:00:13]}  Kd5 {[%clk 0:00:15]} 54. Kg3 {[%clk 0:00:14]}  Kc6 {[%clk 0:00:15]} 55. Bd2 {[%clk 0:00:15]}  Kb5 {[%clk 0:00:16]} 56. Be1 {[%clk 0:00:16]}  Kc6 {[%clk 0:00:17]} 57. Bd2 {[%clk 0:00:16]}  Kb5 {[%clk 0:00:18]} 58. Be1 {[%clk 0:00:17]}  Kc6 {[%clk 0:00:18]} 1/2-1/2


[Site "https://www.chess.com"]